bitfinex/quotes_SOLUSD_20240708
["timestamp","ask_amount","ask_price","bid_price","bid_amount"]
[1720454906351,7.54754999,138.53,138.48,228.0417]
[1720454906549,14.63386152,138.56,138.48,128.0417]
[1720454906550,14.63366152,138.56,138.48,128.0417]
[1720454906720,2.6598,138.61,138.51,100.0]
[1720454906925,7.53849363,138.57,138.51,100.0]
[1720454907154,27.91,138.58,138.51,121.74]
[1720454907344,14.633861,138.63,138.56,6.3017]
[1720454907650,27.91,138.59,138.53,100.0]
[1720454907843,27.91,138.59,138.53,121.74]
[1720454908358,27.91,138.59,138.53,221.74]
[1720454908523,7.53686462,138.61,138.52,21.3416]
[1720454908727,7.2153,138.6,138.53,100.0]
[1720454908924,7.53686462,138.61,138.55,100.0]
[1720454909171,7.53686462,138.61,138.57,100.0]
[1720454909462,0.45469242,138.63,138.57,100.0]
[1720454909751,0.45469242,138.63,138.55,121.74]
[1720454910056,0.45469242,138.63,138.57,100.0]
[1720454910258,7.2129,138.64,138.57,100.0]
[1720454910431,7.2136,138.63,138.57,100.0]
[1720454911051,7.2155,138.59,138.53,100.0]
[1720454911360,7.2155,138.6,138.53,100.0]
[1720454911526,7.2155,138.6,138.52,21.3416]
[1720454911728,7.2155,138.6,138.53,100.0]
[1720454912028,0.17,138.61,138.53,100.0]
[1720454912440,0.17,138.61,138.52,21.3416]
[1720454912832,7.3851,138.6,138.52,21.3416]
[1720454913033,27.3846,138.61,138.53,100.0]
[1720454913250,0.17,138.6,138.52,21.3416]
[1720454914228,2.8298,138.6,138.5,100.0]
[1720454914457,7.2166,138.57,138.5,100.0]
[1720454914648,20.0,138.56,138.5,100.0]
[1720454914952,20.0,138.56,138.52,100.0]
[1720454915257,7.66969242,138.6,138.52,121.74]
[1720454915439,20.0,138.59,138.52,121.74]
[1720454915857,20.0,138.59,138.54,100.0]
[1720454916051,20.0,138.59,138.54,121.74]
[1720454916236,27.2143,138.62,138.54,121.74]
[1720454916429,7.2145,138.61,138.54,121.74]
[1720454916678,20.0,138.6,138.54,121.74]
[1720454916957,15.75719563,138.63,138.56,100.0]
[1720454917159,0.45469242,138.63,138.58,100.0]
[1720454917461,7.66819242,138.63,138.56,106.1977]
[1720454917838,0.45469242,138.63,138.56,106.1977]
[1720454918553,0.17,138.61,138.54,16.0253]
[1720454918862,7.2157,138.59,138.52,106.6335]
[1720454919061,8.54339563,138.63,138.56,100.0]
[1720454919353,8.54339563,138.63,138.52,106.6335]
[1720454919354,0.45469242,138.63,138.54,121.74]
[1720454919544,0.17,138.62,138.54,100.0]
[1720454919944,0.17,138.62,138.52,106.6335]
[1720454919945,0.34,138.62,138.53,100.0]
[1720454920330,7.2149,138.61,138.55,100.0]
[1720454920554,20.0,138.6,138.53,100.0]
[1720454920759,7.2156,138.59,138.53,100.0]
[1720454920938,20.0,138.58,138.56,100.0]
[1720454921134,20.0,138.62,138.54,100.0]
[1720454921336,27.2142,138.62,138.54,100.0]
[1720454921549,27.2142,138.62,138.54,121.74]
[1720454921745,7.2146,138.61,138.54,100.0]
[1720454921944,27.215,138.6,138.54,100.0]
[1720454922157,7.215,138.6,138.54,100.0]
[1720454922454,20.0,138.59,138.56,100.0]
[1720454922663,20.0,138.59,138.54,100.0]
[1720454922870,20.0,138.6,138.56,100.0]
[1720454923040,20.0,138.62,138.56,100.0]
[1720454923240,27.2143,138.62,138.56,100.0]
[1720454924262,20.0,138.62,138.54,100.0]
[1720454924647,7.2146,138.61,138.54,100.0]
[1720454924848,20.0,138.6,138.54,100.0]
[1720454925034,7.2162,138.58,138.53,21.74]
[1720454925234,26.02596464,138.63,138.52,106.6335]
[1720454925235,20.0,138.57,138.52,106.6335]
[1720454925836,20.0,138.58,138.52,128.3735]
[1720454926142,20.0,138.59,138.54,100.0]
[1720454926563,20.0,138.6,138.54,121.74]
[1720454926738,7.2144,138.61,138.54,100.0]
[1720454926939,27.2151,138.6,138.54,100.0]
[1720454927154,7.2151,138.6,138.54,100.0]
[1720454927360,20.0,138.59,138.54,100.0]
[1720454927586,20.0,138.59,138.52,206.6335]
[1720454927735,20.0,138.59,138.54,100.0]
[1720454928043,7.2169,138.57,138.52,6.6335]
[1720454928234,20.0,138.56,138.53,100.0]
[1720454928860,7.2162,138.58,138.53,100.0]
[1720454929180,47.89,138.59,138.52,6.6335]
[1720454929181,27.2167,138.57,138.52,6.6335]
[1720454929370,20.0,138.57,138.52,6.6335]
[1720454930178,20.0,138.57,138.53,100.0]
[1720454930463,35.1044,138.62,138.55,100.0]
[1720454930662,7.2145,138.61,138.55,100.0]
[1720454930842,7.215,138.6,138.53,100.0]
[1720454931361,27.89,138.62,138.52,6.6335]
[1720454931548,26.02614895,138.63,138.52,6.6335]
[1720454931549,7.2164,138.58,138.52,6.6335]
[1720454931951,27.89,138.59,138.52,6.6335]
[1720454932355,20.0,138.58,138.52,6.6335]
[1720454933465,20.0,138.58,138.54,100.0]
[1720454933764,20.0,138.58,138.52,128.3735]
[1720454934260,20.0,138.58,138.52,106.6335]
[1720454935069,20.0,138.58,138.52,135.5926]
[1720454935248,20.0,138.6,138.52,135.5926]
[1720454936563,20.0,138.6,138.52,128.3735]
[1720454936766,20.0,138.6,138.55,100.0]
[1720454936963,7.99234895,138.63,138.55,121.74]
[1720454937162,0.45469242,138.63,138.55,221.74]
[1720454937371,0.45469242,138.63,138.57,100.0]
[1720454937668,7.66809242,138.63,138.55,221.74]
[1720454937860,7.2139,138.62,138.55,100.0]
[1720454938058,7.66819242,138.63,138.55,100.0]
[1720454938577,7.214,138.62,138.55,100.0]
[1720454938778,20.0,138.61,138.55,100.0]
[1720454939372,27.2145,138.61,138.53,221.74]
[1720454939575,7.2152,138.6,138.53,121.74]
[1720454939754,20.0,138.59,138.54,100.0]
[1720454939957,20.0,138.59,138.56,100.0]
[1720454940159,20.0,138.59,138.54,100.0]
[1720454940380,7.2141,138.62,138.52,106.6335]
[1720454940381,7.2153,138.6,138.52,106.6335]
[1720454940675,27.2156,138.59,138.52,106.6335]
[1720454940881,0.17,138.58,138.52,6.6335]
[1720454941049,7.386,138.58,138.52,6.6335]
[1720454941250,20.0,138.57,138.52,6.6335]
[1720454941870,20.17,138.58,138.52,6.6335]
[1720454942071,27.3861,138.58,138.52,6.6335]
[1720454942272,20.0,138.58,138.52,106.6335]
[1720454942463,20.0,138.59,138.52,106.6335]
[1720454942660,20.17,138.59,138.52,106.6335]
[1720454942857,27.3856,138.59,138.52,106.6335]
[1720454943061,0.45469242,138.63,138.56,100.0]
[1720454943372,35.1032,138.64,138.56,100.0]
[1720454943586,7.2135,138.63,138.54,239.7849]
[1720454943877,7.2135,138.63,138.53,7.2184]
[1720454943878,27.89,138.64,138.52,128.3735]
[1720454944051,27.89,138.61,138.52,106.6335]
[1720454944248,7.2156,138.59,138.52,106.6335]
[1720454944654,7.3862,138.58,138.52,6.6335]
[1720454944852,0.17,138.6,138.52,28.3735]
[1720454945160,7.53880047,138.66,138.46,36.1094]
[1720454945161,35.0996,138.71,138.62,100.0]
[1720454945477,27.89,138.71,138.62,100.0]
[1720454945780,7.2101,138.7,138.62,100.0]
[1720454946077,27.89,138.71,138.65,100.0]
[1720454946668,0.86614242,138.74,138.68,100.0]
[1720454946859,6.1390691,138.77,138.68,100.0]
[1720454947061,7.2065,138.77,138.68,100.0]
[1720454947258,7.2069,138.76,138.68,100.0]
[1720454947455,27.93286699,138.78,138.7,100.0]
[1720454947876,0.04286699,138.78,138.68,121.74]
[1720454948056,35.13886699,138.78,138.68,121.74]
[1720454948251,27.93286699,138.78,138.7,100.0]
[1720454948871,20.0,138.77,138.7,100.0]
[1720454949073,27.93286699,138.78,138.7,100.0]
[1720454949460,27.93286699,138.78,138.7,128.9497]
[1720454949681,0.04286699,138.78,138.73,121.74]
[1720454950189,0.04286699,138.78,138.76,100.0]
[1720454950351,0.04286699,138.78,138.76,123.1479]
[1720454950862,0.04286699,138.78,138.76,144.8877]
[1720454951065,0.04286699,138.78,138.76,137.6815]
[1720454951283,0.04286699,138.78,138.77,28.9461]
[1720454951484,0.04286699,138.78,138.77,128.9461]
[1720454951684,12.1701,138.91,138.81,106.5315]
[1720454951685,7.2001,138.89,138.81,106.5315]
[1720454951873,7.2005,138.88,138.81,6.5315]
[1720454952077,0.86614242,138.9,138.77,100.0]
[1720454952281,5.98122892,138.88,138.76,22.473]
[1720454952585,7.2047,138.8,138.72,6.5315]
[1720454952763,7.2032,138.83,138.72,6.5315]
[1720454953107,20.0,138.82,138.74,100.0]
[1720454953392,20.0,138.83,138.74,207.2076]
[1720454953688,20.0,138.84,138.77,100.0]
[1720454953868,20.0,138.84,138.75,121.74]
[1720454954071,22.88166998,138.87,138.77,100.0]
[1720454954367,22.01552756,138.87,138.77,121.74]
[1720454954579,7.2016,138.86,138.77,121.74]
[1720454954784,2.01552756,138.87,138.8,21.74]
[1720454954962,2.01552756,138.87,138.79,100.0]
[1720454955290,7.2005,138.88,138.79,100.0]
[1720454955590,7.2011,138.87,138.79,100.0]
[1720454955885,7.2024,138.85,138.75,121.74]
[1720454956099,7.2025,138.84,138.75,121.74]
[1720454956275,7.203,138.83,138.75,100.0]
[1720454956789,20.0,138.82,138.75,100.0]
[1720454957005,7.2046,138.8,138.72,6.5315]
[1720454957161,20.0,138.79,138.72,6.5315]
[1720454957561,20.0,138.79,138.72,13.7402]
[1720454957777,0.17,138.82,138.72,6.5315]
[1720454957975,0.17,138.81,138.72,6.5315]
[1720454958175,7.2056,138.79,138.72,6.5315]
[1720454958390,20.0,138.78,138.72,6.5315]
[1720454958683,20.0,138.78,138.73,100.0]
[1720454959089,20.0,138.81,138.73,121.74]
[1720454959388,7.2041,138.81,138.73,100.0]
[1720454959559,7.2057,138.78,138.72,6.5315]
[1720454959763,20.0,138.77,138.71,15.1396]
[1720454960177,7.2062,138.77,138.69,106.2845]
[1720454960387,20.17,138.76,138.69,6.2845]
[1720454960568,0.34,138.78,138.7,100.0]
[1720454960569,0.17,138.78,138.7,100.0]
[1720454960776,7.3756,138.78,138.7,100.0]
[1720454961091,20.0,138.77,138.7,100.0]
[1720454961469,0.17,138.76,138.69,6.2845]
[1720454961698,0.34,138.76,138.69,6.2845]
[1720454961880,0.17,138.76,138.69,6.2845]
[1720454962075,0.17,138.76,138.66,107.252]
[1720454962282,20.0,138.77,138.68,100.0]
[1720454962482,27.2065,138.77,138.68,100.0]
[1720454962786,20.0,138.77,138.68,100.0]
[1720454962992,20.0,138.77,138.68,107.2107]
[1720454963378,27.3758,138.78,138.68,107.2107]
[1720454963578,0.17,138.77,138.68,107.2107]
[1720454963795,0.17,138.77,138.68,100.0]
[1720454963796,7.3761,138.77,138.68,100.0]
[1720454963970,20.0,138.76,138.68,100.0]
[1720454964170,20.0,138.78,138.69,21.74]
[1720454964387,0.17,138.77,138.68,128.9507]
[1720454964580,7.3761,138.77,138.68,121.74]
[1720454964893,27.2067,138.76,138.68,100.0]
[1720454965106,20.0,138.76,138.68,107.2104]
[1720454965285,20.17,138.77,138.68,107.2104]
[1720454965601,0.17,138.76,138.66,107.252]
[1720454965893,7.2073,138.75,138.66,107.252]
[1720454966099,7.2083,138.73,138.66,107.252]
[1720454966289,20.0,138.72,138.66,107.252]
[1720454966488,20.0,138.72,138.66,7.252]
[1720454966869,0.17,138.71,138.66,7.252]
[1720454967074,7.3793,138.71,138.66,7.252]
[1720454967295,20.0,138.7,138.66,7.252]
[1720454967683,20.0,138.71,138.66,7.252]
[1720454967993,7.2082,138.73,138.66,7.252]
[1720454968196,20.0,138.72,138.66,7.252]
[1720454968383,7.2099,138.7,138.66,7.252]
[1720454968584,20.0,138.69,138.66,7.252]
[1720454968901,7.2067,138.76,138.67,100.0]
[1720454969103,16.7594,138.77,138.67,100.0]
[1720454969276,7.2062,138.77,138.67,228.9509]
[1720454969478,7.2062,138.77,138.67,200.0]
[1720454969706,7.2062,138.77,138.67,221.74]
[1720454970001,7.2062,138.77,138.69,200.0]
[1720454970198,2.6598,138.8,138.69,206.0267]
[1720454970411,7.2057,138.78,138.69,213.2368]
[1720454970574,20.0,138.77,138.71,21.74]
[1720454970775,27.81,138.8,138.72,200.0]
[1720454971086,27.81,138.8,138.74,100.0]
[1720454971291,27.81,138.8,138.72,221.74]
[1720454971494,27.81,138.8,138.72,228.9486]
[1720454971798,27.81,138.8,138.73,7.2081]
[1720454972000,7.2032,138.83,138.73,7.2081]
[1720454972001,35.0132,138.83,138.73,7.2081]
[1720454972210,7.2046,138.8,138.72,200.0]
[1720454972582,7.53255902,138.83,138.7,16.037]
[1720454972907,7.2058,138.78,138.7,16.037]
[1720454973077,18.0119,138.8,138.7,16.037]
[1720454973078,7.2065,138.77,138.7,16.037]
[1720454973275,20.0,138.76,138.7,16.037]
[1720454973690,7.2062,138.77,138.7,16.037]
[1720454973883,20.0,138.76,138.7,16.037]
[1720454974486,7.2054,138.79,138.71,100.0]
[1720454974681,20.0,138.78,138.7,116.037]
[1720454974985,20.0,138.78,138.71,30.0]
[1720454975182,7.2061,138.77,138.71,30.0]
[1720454975383,20.0,138.76,138.71,30.0]
[1720454975587,20.0,138.78,138.71,30.0]
[1720454975790,7.2061,138.77,138.71,30.0]
[1720454975999,20.0,138.76,138.71,30.0]
[1720454976306,20.0,138.78,138.71,30.0]
[1720454976883,7.2057,138.78,138.71,30.0]
[1720454977102,27.2062,138.77,138.71,30.0]
[1720454977277,20.0,138.76,138.71,30.0]
[1720454977483,7.2068,138.76,138.71,30.0]
[1720454977684,20.0,138.75,138.71,30.0]
[1720454978087,7.2082,138.74,138.71,30.0]
[1720454978298,20.0,138.73,138.71,30.0]
[1720454978607,20.0,138.73,138.66,28.7834]
[1720454978779,20.0,138.73,138.66,128.7834]
[1720454978982,20.0,138.74,138.66,128.7834]
[1720454979183,7.2086,138.73,138.66,28.7834]
[1720454979383,20.0,138.72,138.66,28.7834]
[1720454979586,20.0,138.72,138.67,30.0]
[1720454979806,20.0,138.72,138.66,128.7834]
[1720454979991,20.0,138.73,138.66,128.7834]
[1720454980194,7.2081,138.74,138.66,128.7834]
[1720454980388,20.0,138.73,138.66,28.7834]
[1720454980605,7.2089,138.72,138.66,28.7834]
[1720454980909,20.0,138.71,138.66,28.7834]
[1720454981487,7.2083,138.73,138.66,28.7834]
[1720454981488,20.0,138.72,138.66,28.7834]
[1720454981690,27.2088,138.72,138.66,28.7834]
[1720454981994,20.0,138.72,138.66,28.7834]
[1720454982195,7.2088,138.72,138.66,28.7834]
[1720454982383,27.2094,138.71,138.66,28.7834]
[1720454982593,7.2094,138.71,138.66,21.5314]
[1720454982895,20.0,138.7,138.66,21.5314]
[1720454983205,20.0,138.71,138.66,21.5314]
[1720454983713,20.0,138.71,138.63,6.1576]
[1720454983714,27.2096,138.71,138.63,6.1576]
[1720454983885,7.2098,138.7,138.63,6.1576]
[1720454984087,20.0,138.69,138.63,6.1576]
[1720454985083,20.0,138.7,138.63,6.1576]
[1720454986088,7.3805,138.69,138.63,6.1576]
[1720454986283,20.0,138.68,138.63,6.1576]
[1720454986786,20.0,138.69,138.63,6.1576]
[1720454986985,20.0,138.69,138.63,106.1576]
[1720454987186,7.2096,138.71,138.63,106.1576]
[1720454987488,27.2098,138.7,138.63,106.1576]
[1720454987699,20.0,138.69,138.63,106.1576]
[1720454987915,7.2094,138.71,138.63,106.1576]
[1720454988219,20.0,138.7,138.63,106.1576]
[1720454988512,20.0,138.7,138.63,127.8976]
[1720454988717,20.0,138.71,138.63,127.8976]
[1720454988906,20.0,138.71,138.63,135.1109]
[1720454989501,20.0,138.71,138.65,200.0]
[1720454989683,20.0,138.73,138.65,200.0]
[1720454990014,7.2088,138.72,138.65,100.0]
[1720454990198,25.55204587,138.76,138.63,106.1576]
[1720454990519,7.2089,138.72,138.63,206.1576]
[1720454990894,7.2093,138.71,138.63,206.1576]
[1720454991090,7.2098,138.7,138.63,106.1576]
[1720454991302,7.2109,138.68,138.63,6.1576]
[1720454991496,20.0,138.67,138.63,6.1576]
[1720454992500,7.2111,138.68,138.63,6.1576]
[1720454992702,20.0,138.67,138.63,6.1576]
[1720454993311,27.211,138.68,138.63,6.1576]
[1720454993510,7.2116,138.67,138.62,16.1635]
[1720454993714,20.0,138.66,138.62,16.1635]
[1720454994428,27.212,138.66,138.62,16.1635]
[1720454994723,20.0,138.66,138.62,16.1635]
[1720454995321,20.0,138.67,138.62,16.1635]
[1720454995899,20.0,138.68,138.62,16.1635]
[1720454996305,27.211,138.68,138.62,16.1635]
[1720454996603,7.3814,138.67,138.62,16.1635]
[1720454996827,20.0,138.66,138.62,16.1635]
[1720454997326,20.0,138.68,138.62,16.1635]
[1720454997528,27.2108,138.68,138.62,16.1635]
[1720454997730,0.17,138.67,138.62,16.1635]
[1720454997916,7.3815,138.67,138.62,16.1635]
[1720454998236,20.0,138.66,138.62,16.1635]
[1720454998802,27.2119,138.66,138.62,16.1635]
[1720454999033,20.0,138.66,138.62,16.1635]
[1720454999409,27.211,138.68,138.62,16.1635]
[1720455000313,0.17,138.67,138.59,6.3816]
[1720455000520,0.17,138.67,138.59,106.3816]
[1720455000521,7.3813,138.67,138.59,106.3816]
[1720455000716,20.0,138.66,138.59,106.3816]
[1720455000923,27.2119,138.66,138.59,106.3816]
[1720455001111,20.0,138.66,138.59,106.3816]
[1720455001319,27.2119,138.66,138.59,106.3816]
[1720455001618,20.0,138.66,138.59,106.3816]
[1720455001936,20.0,138.66,138.59,6.3816]
[1720455001937,7.2122,138.66,138.59,6.3816]
[1720455002103,20.0,138.65,138.59,106.3816]
[1720455002305,7.2103,138.69,138.61,200.0]
[1720455002505,0.17,138.71,138.63,100.0]
[1720455002721,28.03,138.71,138.61,100.0]
[1720455003115,7.2112,138.68,138.59,206.3816]
[1720455003408,28.03,138.71,138.59,206.3816]
[1720455003608,7.2114,138.67,138.59,206.3816]
[1720455003841,35.556655,138.71,138.59,228.1216]
[1720455004029,7.2101,138.7,138.61,100.0]
[1720455004348,7.2103,138.69,138.61,100.0]
[1720455004645,7.2115,138.67,138.59,228.1216]
[1720455004934,20.0,138.66,138.61,100.0]
[1720455005129,20.0,138.68,138.61,100.0]
[1720455005528,14.736055,138.71,138.63,100.0]
[1720455005742,7.2099,138.7,138.61,221.74]
[1720455006549,27.86,138.69,138.59,6.3816]
[1720455006707,7.212,138.66,138.59,6.3816]
[1720455007115,27.86,138.69,138.6,100.0]
[1720455007333,27.2108,138.68,138.61,100.0]
[1720455007542,27.2108,138.68,138.6,100.0]
[1720455007749,20.0,138.68,138.59,6.3816]
[1720455008049,0.17,138.67,138.6,100.0]
[1720455008336,20.0,138.68,138.6,100.0]
[1720455008716,27.2108,138.68,138.6,100.0]
[1720455008910,7.2123,138.66,138.59,6.3816]
[1720455009248,27.2125,138.65,138.59,6.3816]
[1720455009432,20.0,138.65,138.59,6.3816]
[1720455009934,20.0,138.65,138.59,106.3816]
[1720455010562,20.0,138.66,138.59,106.3816]
[1720455010931,27.2119,138.66,138.59,6.3816]
[1720455011540,20.0,138.66,138.59,106.3816]
[1720455012653,20.0,138.67,138.59,106.3816]
[1720455012863,27.2115,138.67,138.59,106.3816]
[1720455013030,20.0,138.67,138.59,128.1216]
[1720455013232,20.0,138.67,138.61,100.0]
[1720455013439,0.86614242,138.72,138.62,121.74]
[1720455013645,0.86614242,138.72,138.64,100.0]
[1720455013850,0.86614242,138.72,138.65,16.4347]
[1720455014354,27.86,138.73,138.65,16.4347]
[1720455014557,7.2088,138.72,138.65,16.4347]
[1720455014739,0.86614242,138.75,138.66,206.2292]
[1720455015067,0.86614242,138.75,138.68,100.0]
[1720455015447,9.01595755,138.76,138.68,100.0]
[1720455016168,1.80895755,138.76,138.68,221.74]
[1720455016343,1.80895755,138.76,138.69,100.0]
[1720455017065,1.80895755,138.76,138.7,100.0]
[1720455017370,1.80895755,138.76,138.69,100.0]
[1720455018157,1.80895755,138.76,138.73,6.6086]
[1720455018354,1.80895755,138.76,138.73,106.6086]
[1720455018748,1.80895755,138.76,138.73,206.6086]
[1720455019059,42.86163098,138.81,138.73,206.6086]
[1720455019368,6.1390691,138.82,138.75,100.0]
[1720455019530,27.86,138.84,138.75,121.74]
[1720455019727,7.2019,138.86,138.77,100.0]
[1720455019948,7.202,138.85,138.77,100.0]
[1720455020150,7.2027,138.84,138.77,100.0]
[1720455020340,14.53056339,138.87,138.76,100.0]
[1720455020551,7.2026,138.84,138.76,100.0]
[1720455020858,7.202,138.85,138.76,100.0]
[1720455021166,14.53056339,138.87,138.77,100.0]
[1720455021348,7.00521152,138.87,138.77,100.0]
[1720455021539,7.2025,138.85,138.78,16.6254]
[1720455021738,7.2026,138.84,138.78,16.6254]
[1720455021937,20.0,138.83,138.73,6.6086]
[1720455022130,27.86,138.78,138.73,6.6086]
[1720455022337,0.17,138.76,138.7,15.3444]
[1720455022837,7.2075,138.75,138.7,15.3444]
[1720455023042,20.0,138.74,138.7,15.3444]
[1720455023277,20.0,138.74,138.69,6.0301]
[1720455023563,27.2078,138.74,138.69,6.0301]
[1720455023864,20.0,138.74,138.68,100.0]
[1720455024075,20.0,138.74,138.66,116.6436]
[1720455024076,7.3775,138.75,138.66,216.6436]
[1720455024360,7.2083,138.73,138.66,16.6436]
[1720455024679,20.0,138.72,138.66,116.6436]
[1720455024971,20.0,138.72,138.58,20.83314313]
[1720455024972,7.2118,138.66,138.62,16.4921]
[1720455025138,0.17,138.69,138.62,16.4921]
[1720455025335,20.0,138.65,138.62,16.4921]
[1720455025956,20.0,138.66,138.62,16.4921]
[1720455026539,7.2114,138.67,138.62,16.4921]
[1720455026760,20.0,138.66,138.62,16.4921]
[1720455027250,0.86614242,138.72,138.62,16.4921]
[1720455027251,7.2096,138.71,138.62,16.4921]
[1720455027450,20.0,138.7,138.62,16.4921]
[1720455027753,0.17,138.69,138.62,16.4921]
[1720455027953,7.2108,138.68,138.62,16.4921]
[1720455028149,27.2114,138.67,138.62,16.4921]
[1720455028352,27.2118,138.67,138.62,16.4921]
[1720455028751,20.0,138.67,138.62,16.4921]
[1720455029275,20.0,138.7,138.62,16.4921]
[1720455029451,0.17,138.71,138.62,16.4921]
[1720455029452,0.17,138.69,138.62,16.4921]
[1720455029765,7.3807,138.69,138.62,16.4921]
[1720455029951,20.0,138.68,138.62,16.4921]
[1720455030538,20.17,138.69,138.62,16.4921]
[1720455031061,20.0,138.7,138.63,100.0]
[1720455031236,8.07524242,138.72,138.63,100.0]
[1720455031436,20.0,138.71,138.63,100.0]
[1720455032067,7.2103,138.69,138.62,16.4921]
[1720455032242,20.0,138.68,138.62,16.4921]
[1720455032436,0.86614242,138.72,138.64,100.0]
[1720455032855,0.86614242,138.72,138.66,100.0]
[1720455033368,8.07284242,138.76,138.68,100.0]
[1720455033843,7.2072,138.75,138.68,100.0]
[1720455034368,0.86614242,138.76,138.7,100.0]
[1720455034567,7.205,138.8,138.72,100.0]
[1720455034862,7.2052,138.79,138.72,100.0]
[1720455035064,7.2056,138.79,138.72,100.0]
[1720455035276,7.2046,138.8,138.72,100.0]
[1720455035866,7.2051,138.79,138.72,100.0]
[1720455036069,7.2057,138.78,138.7,100.0]
[1720455036380,7.2051,138.79,138.72,100.0]
[1720455036542,20.0,138.78,138.72,100.0]
[1720455036963,20.0,138.79,138.72,100.0]
[1720455037174,20.0,138.79,138.72,121.74]
[1720455037560,27.2052,138.79,138.72,121.74]
[1720455037745,20.0,138.78,138.72,100.0]
[1720455038463,20.0,138.79,138.72,100.0]
[1720455038668,27.2051,138.79,138.72,100.0]
[1720455039164,7.2058,138.78,138.7,100.0]
[1720455039368,27.2061,138.77,138.7,100.0]
[1720455039553,7.2065,138.77,138.7,100.0]
[1720455039747,20.0,138.76,138.7,100.0]
[1720455040469,0.86614242,138.81,138.74,100.0]
[1720455040651,7.2035,138.82,138.74,100.0]
[1720455041249,7.2035,138.82,138.75,21.781]
[1720455041451,0.86614242,138.84,138.77,121.74]
[1720455041963,7.2034,138.83,138.75,121.781]
[1720455042173,0.86614242,138.84,138.75,121.781]
[1720455042373,0.86614242,138.84,138.77,100.0]
[1720455042555,8.06904242,138.84,138.75,121.781]
[1720455042746,0.86614242,138.84,138.75,121.781]
[1720455042947,7.203,138.83,138.75,121.781]
[1720455043485,0.86614242,138.84,138.75,121.781]
[1720455043486,0.86614242,138.84,138.75,21.781]
[1720455043641,7.2051,138.79,138.75,21.781]
[1720455043848,27.2057,138.78,138.72,6.4767]
[1720455044041,7.2063,138.77,138.72,6.4767]
[1720455044305,20.0,138.76,138.72,6.4767]
[1720455044786,7.2059,138.78,138.72,6.4767]
[1720455044940,20.0,138.77,138.72,6.4767]
[1720455045668,20.0,138.78,138.72,6.4767]
[1720455045873,20.0,138.78,138.72,106.4767]
[1720455046053,20.0,138.8,138.72,128.2167]
[1720455046370,7.00182644,138.81,138.73,7.2081]
[1720455046577,7.00182644,138.81,138.72,206.4767]
[1720455046876,7.00182644,138.81,138.72,6.4767]
[1720455047250,7.2071,138.76,138.72,6.4767]
[1720455047464,7.00182644,138.81,138.72,6.4767]
[1720455047767,7.2059,138.78,138.72,6.4767]